fUST/lending_fUST_20251119
["ID","MTS","AMOUNT","RATE_DAILY","PERIOD"]
[394403268,1763533838953,-151.0,0.0003919,120]
[394403269,1763533838963,-151.0,0.0003919,120]
[394403272,1763533838973,-291.651946,0.0003919,120]
[394403274,1763533838982,-151.0,0.0003919,120]
[394403276,1763533838991,-151.0,0.0003919,120]
[394403278,1763533839001,-151.0,0.0003919,120]
[394403280,1763533839011,-160.93972894,0.0003919,14]
[394403282,1763533839021,-150.0,0.0003919,2]
[394403284,1763533839030,-1051.27319929,0.0003919,14]
[394403286,1763533839040,-10009.9561426,0.0003919,2]
[394403288,1763533839048,-235.07610414,0.0003919,2]
[394403290,1763533839059,-150.39979233,0.0003919,2]
[394403292,1763533839070,-7386.05264068,0.0003919,7]
[394403294,1763533839080,-3854.19791717,0.0003919,2]
[394403296,1763533839091,-227.90687125,0.0003919,15]
[394403298,1763533839102,-300.0,0.0003919,2]
[394403300,1763533839112,-816.42592454,0.0003919,2]
[394403302,1763533839121,-346.36014294,0.0003919,2]
[394403304,1763533839132,-260.32071089,0.0003919,2]
[394403306,1763533839141,-12640.42222634,0.0003919,2]
[394403308,1763533839150,-500.0,0.0003919,2]
[394403310,1763533839159,-500.0,0.0003919,2]
[394403312,1763533839169,-500.0,0.0003919,2]
[394403314,1763533839178,-500.0,0.0003919,2]
[394403316,1763533839188,-500.0,0.0003919,2]
[394403318,1763533839198,-500.0,0.0003919,2]
[394403320,1763533839208,-500.0,0.0003919,2]
[394403322,1763533839218,-500.0,0.0003919,2]
[394403324,1763533839229,-500.0,0.0003919,2]
[394403326,1763533839239,-282.23088973,0.0003919,2]
[394403328,1763533839249,-500.0,0.0003919,7]
[394403330,1763533839259,-500.0,0.0003919,7]
[394403332,1763533839269,-500.0,0.0003919,7]
[394403334,1763533839279,-500.0,0.0003919,7]
[394403337,1763533839298,-500.0,0.0003919,7]
[394403339,1763533839310,-500.0,0.0003919,7]
[394403341,1763533839320,-398.39334237,0.0003919,7]
[394403343,1763533839331,-500.0,0.0003919,10]
[394403345,1763533839341,-500.0,0.0003919,10]
[394403347,1763533839350,-500.0,0.0003919,10]
[394403349,1763533839360,-500.0,0.0003919,10]
[394403351,1763533839369,-500.0,0.0003919,10]
[394403353,1763533839378,-500.0,0.0003919,10]
[394403355,1763533839387,-500.0,0.0003919,10]
[394403357,1763533839397,-500.0,0.0003919,10]
[394403359,1763533839406,-500.0,0.0003919,10]
[394403361,1763533839415,-500.0,0.0003919,10]
[394403363,1763533839424,-500.0,0.0003919,10]
[394403365,1763533839433,-500.0,0.0003919,10]
[394403367,1763533839442,-500.0,0.0003919,10]
[394403369,1763533839451,-500.0,0.0003919,10]
[394403371,1763533839460,-500.0,0.0003919,10]
[394403373,1763533839470,-500.0,0.0003919,10]
[394403390,1763533839479,-500.0,0.0003919,10]
[394403392,1763533839627,-500.0,0.0003919,10]
[394403394,1763533839636,-500.0,0.0003919,10]
[394403396,1763533839645,-500.0,0.0003919,10]
[394403398,1763533839654,-500.0,0.0003919,10]
[394403400,1763533839663,-500.0,0.0003919,10]
[394403402,1763533839672,-282.51558156,0.0003919,10]
[394403404,1763533839681,-500.0,0.0003919,7]
[394403406,1763533839690,-500.0,0.0003919,7]
[394403408,1763533839698,-500.0,0.0003919,7]
[394403410,1763533839707,-500.0,0.0003919,7]
[394403412,1763533839716,-500.0,0.0003919,7]
[394403414,1763533839725,-500.0,0.0003919,7]
[394403416,1763533839734,-500.0,0.0003919,7]
[394403418,1763533839743,-500.0,0.0003919,7]
[394403420,1763533839752,-500.0,0.0003919,7]
[394403422,1763533839761,-500.0,0.0003919,7]
[394403424,1763533839769,-500.0,0.0003919,7]
[394403426,1763533839778,-500.0,0.0003919,7]
[394403428,1763533839787,-508.34026237,0.0003919,7]
[394403430,1763533839803,-500.0,0.0003919,2]
[394403432,1763533839813,-500.0,0.0003919,2]
[394403434,1763533839822,-502.80110716,0.0003919,2]
[394403436,1763533839834,-514.52972774,0.0003919,14]
[394403438,1763533839843,-602.78,0.0003919,7]
[394403440,1763533839852,-602.78,0.0003919,7]
[394403442,1763533839861,-602.78,0.0003919,7]
[394403444,1763533839871,-602.78,0.0003919,7]
[394403446,1763533839880,-602.78,0.0003919,7]
[394403448,1763533839889,-602.78,0.0003919,7]
[394403450,1763533839898,-602.78,0.0003919,7]
[394403452,1763533839907,-602.78,0.0003919,7]
[394403454,1763533839916,-602.78,0.0003919,7]
[394403456,1763533839925,-602.78,0.0003919,7]
[394403458,1763533839934,-602.78,0.0003919,7]
[394403460,1763533839943,-602.78,0.0003919,7]
[394403462,1763533839952,-602.78,0.0003919,7]
[394403464,1763533839961,-602.78,0.0003919,7]
[394403466,1763533839970,-602.78,0.0003919,7]
[394403468,1763533839979,-602.78,0.0003919,7]
[394403470,1763533839988,-602.78,0.0003919,7]
[394403472,1763533839997,-602.78,0.0003919,7]
[394403474,1763533840006,-602.78,0.0003919,7]
[394403476,1763533840015,-602.78,0.0003919,7]
[394403478,1763533840025,-602.78,0.0003919,7]
[394403480,1763533840034,-602.78,0.0003919,7]
[394403482,1763533840043,-602.78,0.0003919,7]
[394403484,1763533840051,-602.82316538,0.0003919,7]
[394403486,1763533840062,-1927.0,0.0003919,2]
[394403488,1763533840071,-1927.0,0.0003919,2]
[394403490,1763533840081,-1927.0,0.0003919,2]
[394403492,1763533840091,-1927.0,0.0003919,2]
[394403494,1763533840100,-1927.0,0.0003919,2]
[394403496,1763533840108,-1927.0,0.0003919,2]
[394403498,1763533840117,-1927.0,0.0003919,2]
[394403500,1763533840126,-1927.0,0.0003919,2]
[394403502,1763533840135,-1927.0,0.0003919,2]
[394403504,1763533840143,-1927.0,0.0003919,2]
[394403506,1763533840152,-1927.0,0.0003919,2]
[394403508,1763533840162,-1927.0,0.0003919,2]
[394403510,1763533840171,-1927.0,0.0003919,2]
[394403512,1763533840180,-1927.0,0.0003919,2]
[394403514,1763533840189,-1927.0,0.0003919,2]
[394403516,1763533840198,-1927.0,0.0003919,2]
[394403518,1763533840208,-1927.0,0.0003919,2]
[394403520,1763533840217,-1927.0,0.0003919,2]
[394403522,1763533840226,-1927.0,0.0003919,2]
[394403524,1763533840235,-1927.0,0.0003919,2]
[394403526,1763533840244,-1927.0,0.0003919,2]
[394403528,1763533840253,-1927.0,0.0003919,2]
[394403530,1763533840263,-1927.0,0.0003919,2]
[394403532,1763533840272,-1927.0085922,0.0003919,2]
[394403534,1763533840281,-250.0,0.0003919,10]
[394403536,1763533840290,-250.0,0.0003919,10]
[394403538,1763533840300,-250.0,0.0003919,10]
[394403540,1763533840312,-458.116583,0.0003919,10]
[394403543,1763533840322,-7638.67,0.0003919,3]
[394403545,1763533840332,-7638.67,0.0003919,3]
[394403547,1763533840340,-7638.67,0.0003919,3]
[394403549,1763533840350,-7638.67,0.0003919,3]
[394403551,1763533840359,-7638.67,0.0003919,3]
[394403553,1763533840369,-7638.67,0.0003919,3]
[394403555,1763533840378,-7638.67,0.0003919,3]
[394403557,1763533840388,-7638.67,0.0003919,3]
[394403559,1763533840397,-7638.67,0.0003919,3]
[394403561,1763533840407,-7638.67,0.0003919,3]
[394403563,1763533840416,-7638.67,0.0003919,3]
[394403565,1763533840426,-7638.67,0.0003919,3]
[394403567,1763533840435,-7638.67,0.0003919,3]
[394403569,1763533840444,-7638.67,0.0003919,3]
[394403571,1763533840454,-7638.67,0.0003919,3]
[394403573,1763533840463,-7638.67,0.0003919,3]
[394403575,1763533840472,-7638.67,0.0003919,3]
[394403577,1763533840482,-7638.67,0.0003919,3]
[394403579,1763533840491,-7638.67,0.0003919,3]
[394403581,1763533840500,-7638.67,0.0003919,3]
[394403583,1763533840514,-7638.67,0.0003919,3]
[394403585,1763533840523,-7638.67,0.0003919,3]
[394403587,1763533840532,-7638.67,0.0003919,3]
[394403589,1763533840543,-7638.84539367,0.0003919,3]
[394403591,1763533840552,-500.0,0.0003919,7]
[394403593,1763533840560,-500.0,0.0003919,7]
[394403595,1763533840569,-500.0,0.0003919,7]
[394403597,1763533840578,-500.0,0.0003919,7]
[394403598,1763533840588,-500.0,0.0003919,7]
[394403600,1763533840597,-500.0,0.0003919,7]
[394403603,1763533840607,-500.0,0.0003919,7]
[394403604,1763533840615,-500.0,0.0003919,7]
[394403607,1763533840625,-500.0,0.0003919,7]
[394403608,1763533840634,-500.0,0.0003919,7]
[394403611,1763533840644,-500.0,0.0003919,7]
[394403612,1763533840653,-500.0,0.0003919,7]
[394403614,1763533840662,-500.0,0.0003919,7]
[394403616,1763533840671,-500.0,0.0003919,7]
[394403618,1763533840680,-500.0,0.0003919,7]
[394403620,1763533840689,-500.0,0.0003919,7]
[394403622,1763533840698,-500.0,0.0003919,7]
[394403624,1763533840716,-500.0,0.0003919,7]
[394403626,1763533840725,-352.77051202,0.0003919,7]
[394403628,1763533840734,-1548.67,0.0003919,3]
[394403630,1763533840743,-1548.67,0.0003919,3]
[394403632,1763533840752,-1548.67,0.0003919,3]
[394403634,1763533840761,-1548.67,0.0003919,3]
[394403636,1763533840771,-1548.67,0.0003919,3]
[394403639,1763533840780,-1548.67,0.0003919,3]
[394403641,1763533840789,-476.9433073,0.0003919,2]
[394403643,1763533840798,-1548.67,0.0003919,3]
[394403645,1763533840807,-1548.67,0.0003919,3]
[394403647,1763533840816,-1548.67,0.0003919,3]
[394403649,1763533840825,-1548.67,0.0003919,3]
[394403651,1763533840836,-1548.67,0.0003919,3]
[394403653,1763533840845,-1548.67,0.0003919,3]
[394403655,1763533840855,-1548.67,0.0003919,3]
[394403657,1763533840865,-1548.67,0.0003919,3]
[394403659,1763533840874,-1548.67,0.0003919,3]
[394403661,1763533840883,-1548.67,0.0003919,3]
[394403663,1763533840891,-1548.67,0.0003919,3]
[394403665,1763533840900,-1548.67,0.0003919,3]
[394403667,1763533840910,-1548.67,0.0003919,3]
[394403669,1763533840919,-1548.67,0.0003919,3]
[394403671,1763533840929,-1548.67,0.0003919,3]
[394403673,1763533840938,-1548.67,0.0003919,3]
[394403675,1763533840947,-1548.67,0.0003919,3]
[394403677,1763533840955,-1548.71702509,0.0003919,3]
[394403679,1763533840965,-149.999999,0.0003919,14]
[394403681,1763533840974,-514.59,0.0003919,7]
[394403683,1763533840982,-514.59,0.0003919,7]
[394403685,1763533840991,-514.59,0.0003919,7]
[394403687,1763533841000,-514.59,0.0003919,7]
[394403689,1763533841009,-514.59,0.0003919,7]
[394403691,1763533841018,-514.59,0.0003919,7]
[394403693,1763533841026,-514.59,0.0003919,7]
[394403695,1763533841035,-514.59,0.0003919,7]
[394403697,1763533841044,-514.59,0.0003919,7]
[394403699,1763533841053,-514.59,0.0003919,7]
[394403701,1763533841062,-514.59,0.0003919,7]
[394403703,1763533841071,-514.59,0.0003919,7]
[394403705,1763533841081,-514.59,0.0003919,7]
[394403707,1763533841090,-514.59,0.0003919,7]
[394403709,1763533841099,-633.31814124,0.0003919,10]
[394403710,1763533841108,-514.59,0.0003919,7]
[394403712,1763533841118,-514.59,0.0003919,7]
[394403713,1763533841127,-514.59,0.0003919,7]
[394403714,1763533841136,-514.59,0.0003919,7]
[394403715,1763533841146,-514.59,0.0003919,7]
[394403716,1763533841155,-514.59,0.0003919,7]
[394403717,1763533841164,-514.59,0.0003919,7]
[394403718,1763533841173,-514.59,0.0003919,7]
[394403719,1763533841183,-514.59,0.0003919,7]
[394403720,1763533841192,-514.62542084,0.0003919,7]
[394403721,1763533841201,-502.72585023,0.0003919,7]
[394403722,1763533841214,-500.0,0.0003919,7]
[394403723,1763533841224,-500.0,0.0003919,7]
[394403725,1763533841233,-500.0,0.0003919,7]
[394403726,1763533841243,-500.0,0.0003919,7]
[394403728,1763533841252,-500.0,0.0003919,7]
[394403730,1763533841261,-500.0,0.0003919,7]
[394403732,1763533841270,-500.0,0.0003919,7]
[394403734,1763533841280,-500.0,0.0003919,7]
[394403736,1763533841289,-500.0,0.0003919,7]
[394403738,1763533841299,-500.0,0.0003919,7]
[394403740,1763533841308,-500.0,0.0003919,7]
[394403742,1763533841317,-500.0,0.0003919,7]
[394403744,1763533841326,-500.0,0.0003919,7]
[394403746,1763533841337,-500.0,0.0003919,7]
[394403748,1763533841346,-492.93928416,0.0003919,7]
[394403751,1763533841356,-150.0,0.0003919,20]
[394403753,1763533841366,-800.0,0.00039221,7]
[394403755,1763533841375,-800.0,0.0003923,7]
[394403757,1763533841385,-800.0,0.00039284,7]
[394403759,1763533841393,-1000.0,0.00039292,90]
[394403761,1763533841402,-1000.0,0.00039292,90]
[394403763,1763533841412,-1000.0,0.00039292,90]
[394403765,1763533841421,-2000.0,0.00039293,21]
[394403767,1763533841431,-800.0,0.00039313,7]
[394403769,1763533841440,-152.92452867,0.0003937,30]
[394403771,1763533841449,-800.0,0.00039377,7]
[394403773,1763533841460,-1938.86,0.000394,14]
[394403775,1763533841469,-500.0,0.00039452,3]
[394403777,1763533841479,-1000.0,0.00039452,2]
[394403779,1763533841489,-1000.0,0.00039452,2]
[394403781,1763533841499,-522.39,0.00039452,2]
[394403783,1763533841513,-500.0,0.00039452,30]
[394403785,1763533841522,-451.25030609,0.00039452,3]
[394403787,1763533841532,-1965.871682,0.0003948,13]
[394403789,1763533841542,-151.0,0.00039481,14]
[394403791,1763533841554,-203.1256433,0.00039481,14]
[394403793,1763533841564,-151.0,0.00039481,14]
[394403795,1763533841574,-151.0,0.00039481,14]
[394403797,1763533841586,-151.0,0.00039481,14]
[394403799,1763533841597,-151.0,0.00039481,14]
[394403801,1763533841607,-151.0,0.00039481,14]
[394403803,1763533841618,-151.0,0.00039481,14]
[394403805,1763533841632,-333.0,0.00039481,14]
[394403807,1763533841645,-151.0,0.00039481,14]
[394403809,1763533841655,-333.0,0.00039481,14]
[394403811,1763533841665,-151.0,0.00039481,14]
[394403813,1763533841674,-333.0,0.00039481,14]
[394403815,1763533841684,-151.0,0.00039481,14]
[394403817,1763533841693,-333.0,0.00039481,14]
[394403819,1763533841703,-151.0,0.00039481,14]
[394403821,1763533841712,-333.0,0.00039481,14]
[394403823,1763533841724,-333.0,0.00039481,14]
[394403825,1763533841733,-151.0,0.00039481,14]
[394403827,1763533841742,-342.75331161,0.00039481,14]
[394403829,1763533841752,-151.0,0.00039481,14]
[394403831,1763533841761,-151.0,0.00039481,14]
[394403833,1763533841770,-151.0,0.00039481,14]
[394403835,1763533841779,-151.0,0.00039481,14]
[394403837,1763533841789,-174.0,0.00039481,14]
[394403839,1763533841798,-151.0,0.00039481,14]
[394403841,1763533841808,-175.12851068,0.00039481,14]
[394403843,1763533841817,-151.0,0.00039481,14]
[394403845,1763533841826,-151.0,0.00039481,14]
[394403847,1763533841837,-151.0,0.00039481,14]
[394403849,1763533841847,-151.0,0.00039481,14]
[394403851,1763533841855,-151.0,0.00039481,14]
[394403853,1763533841865,-151.0,0.00039481,14]
[394403855,1763533841874,-151.0,0.00039481,14]
[394403857,1763533841882,-151.0,0.00039481,14]
[394403859,1763533841892,-151.0,0.00039481,14]
[394403861,1763533841901,-151.0,0.00039481,14]
[394403863,1763533841910,-151.0,0.00039481,14]
[394403865,1763533841919,-151.0,0.00039481,14]
[394403867,1763533841929,-151.0,0.00039481,14]
[394403869,1763533841938,-281.69655829,0.00039481,14]
[394403872,1763533841947,-600.0,0.00039498,7]
[394403874,1763533841957,-700.0,0.000395,2]
[394403876,1763533841965,-1000.0,0.000395,13]
[394403877,1763533841975,-1000.0,0.0003952,13]
[394403880,1763533841984,-1000.0,0.0003954,13]
[394403882,1763533841993,-1000.0,0.0003956,13]
[394403883,1763533842002,-6904.47525677,0.0003957,2]
[394403885,1763533842011,-1000.0,0.0003958,13]
[394403887,1763533842019,-150.0,0.000396,120]
[394403889,1763533842029,-150.0,0.000396,120]
[394403891,1763533842039,-475.0,0.000396,20]
[394403893,1763533842047,-1000.0,0.000396,13]
[394403895,1763533842057,-250.0,0.000396,10]
[394403898,1763533842066,-150.0,0.000396,2]
[394403899,1763533842075,-1000.0,0.0003962,13]
[394403901,1763533842086,-1000.0,0.0003964,13]
[394403904,1763533842096,-1035.0,0.00039644,20]
[394403906,1763533842105,-1020.0,0.00039644,20]
[394403908,1763533842114,-1020.0,0.00039644,20]
[394403909,1763533842123,-1020.0,0.00039644,20]
[394403912,1763533842132,-1020.0,0.00039644,20]
[394403914,1763533842141,-1020.0,0.00039644,20]
[394403915,1763533842150,-1020.0,0.00039644,20]
[394403917,1763533842160,-1020.0,0.00039644,20]
[394403919,1763533842169,-1020.0,0.00039644,20]
[394403921,1763533842179,-1020.0,0.00039644,20]
[394403924,1763533842188,-1020.0,0.00039644,20]
[394403926,1763533842198,-3000.0,0.00039647,120]
[394403928,1763533842207,-500.0,0.00039652,7]
[394403929,1763533842216,-500.0,0.00039652,30]
[394403932,1763533842226,-193.01,0.00039652,10]
[394403934,1763533842235,-1132.720159,0.00039654,2]
[394403935,1763533842244,-1000.0,0.0003966,13]
[394403938,1763533842254,-1000.0,0.0003968,13]
[394403940,1763533842263,-1184.658982,0.0003968,13]
[394403942,1763533842272,-4343.97,0.00039689,2]
[394403943,1763533842281,-164.0,0.000397,120]
[394403945,1763533842291,-263669.262107,0.000397,30]
[394403947,1763533842300,-200.0,0.000397,3]
[394403950,1763533842310,-1000.0,0.000397,13]
[394403952,1763533842320,-1000.0,0.000397,13]
[394403954,1763533842330,-250.0,0.000397,10]
[394403956,1763533842338,-500.0,0.00039707,7]
[394403970,1763533842447,-5753.12548702,0.00039718,2]
[394403972,1763533842458,-521.45993127,0.00039726,3]
[394403975,1763533842468,-1000.0,0.00039726,2]
[394403977,1763533842477,-1000.0,0.00039726,2]
[394403979,1763533842486,-522.39,0.00039726,2]
[394403981,1763533842496,-500.0,0.00039726,30]
[394403983,1763533842508,-567.57558865,0.00039759,120]
[394403985,1763533842517,-728.12492433,0.0003978,20]
[394403987,1763533842526,-250.0,0.000398,10]
[394403989,1763533842535,-500.0,0.00039807,2]
[394403991,1763533842546,-162.0,0.00039871,90]
[394403993,1763533842555,-1000.0,0.00039889,15]
[394403995,1763533842564,-2000.0,0.00039898,120]
[394403997,1763533842573,-250.0,0.000399,10]
[394403998,1763533842586,-200.80609156,0.000399,120]
[394403999,1763533842595,-159.0,0.00039907,120]
[394404000,1763533842604,-442.06706211,0.00039999,31]
[394404001,1763533842614,-341.2948858,0.00039999,31]
[394404002,1763533842623,-452.78383796,0.00039999,31]
[394404003,1763533842633,-500.0,0.00039999,31]
[394404004,1763533842642,-500.0,0.00039999,7]
[394404005,1763533842651,-500.0,0.00039999,7]
[394404006,1763533842660,-500.0,0.00039999,31]
[394404007,1763533842669,-500.0,0.00039999,31]
[394404008,1763533842678,-500.0,0.00039999,31]
[394404009,1763533842688,-500.0,0.00039999,7]
[394404010,1763533842697,-500.0,0.00039999,31]
[394404011,1763533842706,-500.0,0.00039999,31]
[394404012,1763533842715,-500.0,0.0004,30]
[394404013,1763533842724,-500.0,0.0004,2]
[394404014,1763533842733,-187228.77248744,0.0004,120]
[394404015,1763533842742,-257.77,0.0004,7]
[394404016,1763533842751,-300.0,0.0004,120]
[394404018,1763533842760,-174.32891891,0.0004,120]
[394404020,1763533842772,-161.14784884,0.0004,10]
[394404021,1763533842781,-80896.6696243,0.0004,2]
[394404022,1763533842791,-1024.41967643,0.0004,10]
[394404024,1763533842801,-160.0,0.0004,120]
[394404026,1763533842811,-1000.0,0.0004,2]
[394404028,1763533842820,-165.289363,0.0004,120]
[394404030,1763533842829,-1000.0,0.0004,2]
[394404031,1763533842839,-151.0,0.0004,120]
[394404032,1763533842848,-522.39,0.0004,2]
[394404033,1763533842859,-151.0,0.0004,120]
[394404034,1763533842868,-151.0,0.0004,120]
[394404035,1763533842878,-151.0,0.0004,120]
[394404036,1763533842887,-250.0,0.0004,10]
[394404037,1763533842897,-151.0,0.0004,120]
[394404039,1763533842906,-151.0,0.0004,120]
[394404041,1763533842915,-151.0,0.0004,2]
[394404042,1763533842925,-151.0,0.0004,2]
[394404043,1763533842934,-151.0,0.0004,120]
[394404044,1763533842944,-151.0,0.0004,2]
[394404045,1763533842953,-151.0,0.0004,2]
[394404046,1763533842963,-151.0,0.0004,120]
[394404047,1763533842972,-151.0,0.0004,120]
[394404048,1763533842981,-182.270824,0.0004,120]
[394404049,1763533842991,-151.0,0.0004,120]
[394404050,1763533843001,-151.0,0.0004,120]
[394404051,1763533843010,-161.719591,0.0004,120]
[394404052,1763533843020,-1225.68,0.0004,7]
[394404053,1763533843029,-350.0,0.0004,5]
[394404054,1763533843039,-250.0,0.000401,10]
[394404055,1763533843049,-250.0,0.000402,10]
[394404056,1763533843059,-1000.0,0.00040273,2]
[394404057,1763533843068,-1000.0,0.00040273,2]
[394404058,1763533843078,-522.39,0.00040273,2]
[394404059,1763533843088,-500.0,0.00040274,30]
[394404060,1763533843098,-630.0,0.00040283,2]
[394404061,1763533843107,-2151.0,0.00040283,2]
[394404062,1763533843116,-414.0,0.00040283,2]
[394404063,1763533843126,-250.0,0.000403,10]
[394404064,1763533843136,-354.53183,0.00040354,60]
[394404065,1763533843145,-250.0,0.000404,10]
[394404066,1763533843154,-200.0,0.00040482,120]
[394404067,1763533843163,-1938.86,0.000405,14]
[394404068,1763533843173,-250.0,0.000405,10]
[394404069,1763533843182,-1000.0,0.00040547,2]
[394404070,1763533843191,-1000.0,0.00040547,2]
[394404071,1763533843202,-522.39,0.00040547,2]
[394404072,1763533843211,-500.0,0.00040548,30]
[394404073,1763533843221,-250.0,0.000406,10]
[394404074,1763533843230,-150.0,0.000406,2]
[394404075,1763533843240,-250.0,0.000407,10]
[394404076,1763533843250,-1000.0,0.00040821,2]
[394404077,1763533843259,-1000.0,0.00040821,2]
[394404078,1763533843269,-522.39,0.00040821,2]
[394404079,1763533843278,-500.0,0.00040822,30]
[394404080,1763533843288,-450.0,0.00040822,5]
[394404081,1763533843298,-2000.0,0.00040823,21]
[394404082,1763533843307,-500.0,0.00040903,2]
[394404083,1763533843317,-1000.0,0.00041095,2]
[394404084,1763533843326,-1000.0,0.00041095,2]
[394404085,1763533843336,-522.39,0.00041095,2]
[394404086,1763533843345,-551.26,0.00041096,30]
[394404087,1763533843355,-564.09,0.00041096,120]
[394404088,1763533843364,-232.44,0.00041096,120]
[394404089,1763533843374,-182.982403,0.00041096,120]
[394404090,1763533843383,-459.305,0.00041096,120]
[394404091,1763533843392,-500.0,0.00041351,60]
[394404092,1763533843402,-1000.0,0.00041369,2]
[394404093,1763533843411,-352.27061944,0.00041369,2]
[394404094,1763533843420,-522.39,0.00041369,2]
[394404095,1763533843429,-354.53183,0.00041559,2]
[394404096,1763533843438,-155.838167,0.00041559,2]
[394404097,1763533843448,-1000.0,0.00041643,2]
[394404098,1763533843458,-522.39,0.00041643,2]
[394404099,1763533843467,-550.0,0.00041644,10]
[394404100,1763533843477,-599.9058437,0.00041759,120]
[394404101,1763533843485,-159.0,0.00041903,120]
[394404102,1763533843494,-354.53183,0.00041908,60]
[394404103,1763533843504,-155.838167,0.00041908,60]
[394404104,1763533843516,-903.45279037,0.00041917,2]
[394404105,1763533843526,-522.39,0.00041917,2]
[394404106,1763533843535,-500.0,0.00041999,2]
[394404107,1763533843543,-460.25302715,0.00042,120]
[394404108,1763533843553,-522.39,0.00042191,2]
[394404109,1763533843562,-5212.76,0.00042335,2]
[394404110,1763533843571,-151.0,0.00042335,120]
[394404111,1763533843580,-2000.0,0.00042352,21]
[394404112,1763533843590,-10869.0,0.000424,120]
[394404113,1763533843599,-500.0,0.00042447,60]
[394404114,1763533843608,-522.39,0.00042465,2]
[394404115,1763533843618,-650.0,0.00042466,10]
[394404117,1763533843627,-522.39,0.00042739,2]
[394404119,1763533843636,-175.080425,0.00042842,7]
[394404120,1763533843644,-354.53183,0.00042842,7]
[394404121,1763533843653,-168.82468,0.00042842,7]
[394404122,1763533843663,-155.838167,0.00042842,7]
[394404123,1763533843671,-522.39,0.00043013,2]
[394404124,1763533843680,-500.0,0.00043095,2]
[394404125,1763533843690,-3435.0279,0.0004322,30]
[394404126,1763533843699,-1000.0,0.00043222,90]
[394404127,1763533843708,-897.0,0.00043222,90]
[394404128,1763533843717,-159.243,0.00043283,2]
[394404129,1763533843726,-2151.0,0.00043283,2]
[394404130,1763533843736,-414.0,0.00043283,2]
[394404131,1763533843745,-522.39,0.00043287,2]
[394404132,1763533843754,-750.0,0.00043288,10]
[394404133,1763533843763,-354.53183,0.00043442,5]
[394404134,1763533843772,-168.82468,0.00043442,5]
[394404135,1763533843781,-155.838167,0.00043442,5]
[394404136,1763533843790,-354.53183,0.00043462,60]
[394404137,1763533843799,-155.838167,0.00043462,60]
[394404138,1763533843808,-500.0,0.00043543,60]
[394404139,1763533843817,-522.39,0.00043561,2]
[394404140,1763533843826,-632.23609875,0.00043759,120]
[394404141,1763533843836,-1000.0,0.000438,90]
[394404142,1763533843845,-14915.50016355,0.000438,30]
[394404143,1763533843854,-522.39,0.00043835,2]
[394404144,1763533843862,-2000.0,0.00043882,21]
[394404145,1763533843871,-6926.49,0.00044,12]
[394404146,1763533843880,-300.0,0.00044,120]
[394404147,1763533843889,-199.0,0.00044109,30]
[394404148,1763533843898,-522.39,0.00044109,2]
[394404149,1763533843907,-850.0,0.0004411,10]
[394404150,1763533843917,-500.0,0.0004419,2]
[394404151,1763533843926,-164.0,0.000443,120]